Creditor Name,Section,Voucher No,Cost Code,Detail Code,Type of Expenditure,Description,Payment Date,Net Amount
2 Counties Construction,Property Services,V093549,0900,1000,Premises,Repairs & Maintenance,24/06/2019,1800.00
A J Taylor Limited,Property Services,V093427,2950,1000,Premises,Repairs & Maintenance,14/06/2019,57.90
A J Taylor Limited,Property Services,V093432,2972,1000,Premises,Repairs & Maintenance,14/06/2019,5128.01
A J Taylor Limited,Property Services,V093550,4151,1000,Premises,Repairs & Maintenance,24/06/2019,172.30
A J Taylor Limited,Property Services,V093551,0900,1000,Premises,Repairs & Maintenance,24/06/2019,200.78
A J Taylor Limited,Property Services,V093568,0900,1000,Premises,Repairs & Maintenance,24/06/2019,194.50
Abbeydore Guest House,Housing,V092937,3300,2800,Third Party payments,Contractors,10/06/2019,1435.00
Abbeydore Guest House,Housing,V093575,3300,2800,Third Party payments,Contractors,26/06/2019,595.00
Aldermore Invoice Finance,Property Services,V093354,2972,1000,Premises,Repairs & Maintenance,12/06/2019,445.42
Alfrick & Lulsley Village Hall,Electoral and Democratic Services,V093250,8101,2818,Supplies and Services,Accommodation Hire,10/06/2019,650.00
Alfrick & Lulsley Village Hall,Electoral and Democratic Services,V093375,8108,2818,Supplies and Services,Accommodation Hire,14/06/2019,650.00
Andrew Grout,Building Control,V093170,7500,2800,Third Party payments,Contractors,06/06/2019,425.00
Arc4 Ltd,Finance and Other Resources,V093595,7006,2800,Third Party payments,Contractors,26/06/2019,8368.50
Arnold Clark Finance,Finance and Other Resources,V093289,8861,3600,Transport,Car Leases,10/06/2019,103.93
Arnold Clark Finance,Finance and Other Resources,V093289,8861,3600,Transport,Car Leases,10/06/2019,143.03
Bayton Village Hall  Recreation Ground Committee,Electoral and Democratic Services,V093318,8108,2818,Supplies and Services,Accommodation Hire,12/06/2019,250.00
B-Cam Ltd,Community Services,V093580,4426,2800,Third Party payments,Contractors,26/06/2019,983.50
BES Cash Registers Limited,Tourism,V093246,6590,5300,Supplies and Services,Subscriptions,10/06/2019,300.00
Bluebird Graphics Ltd t/a Creative Solutions,Economic Development,V092866,6550,1000,Premises,Repairs & Maintenance,06/06/2019,218.87
BM TRADA,Property Services,V092858,1199,7010,Capital,Works,06/06/2019,210.00
Bromsgrove District Council,Finance and Other Resources,V092770,4320,5507,Third Party payments,OLA`s,04/06/2019,3902.15
Bromsgrove District Council,Finance and Other Resources,V092770,4320,5507,Third Party payments,OLA`s,04/06/2019,9228.00
Brookhire Vehicle Rental,Electoral and Democratic Services,V093201,8101,3150,Transport,Vehicle Hire,06/06/2019,180.67
Brookhire Vehicle Rental,Electoral and Democratic Services,V093202,8101,3150,Transport,Vehicle Hire,06/06/2019,180.67
Brookhire Vehicle Rental,Environmental Services,V093218,0830,3510,Transport,Vehicle Maintenance,26/06/2019,58.60
Brookhire Vehicle Rental,Environmental Services,V093219,0762,3510,Transport,Vehicle Maintenance,26/06/2019,137.80
Brookhire Vehicle Rental,Environmental Services,V093220,0722,3510,Transport,Vehicle Maintenance,26/06/2019,673.93
Brookhire Vehicle Rental,Environmental Services,V093224,0762,3510,Transport,Vehicle Maintenance,26/06/2019,150.00
Brookhire Vehicle Rental,Environmental Services,V093225,0727,3510,Transport,Vehicle Maintenance,26/06/2019,60.00
Brookhire Vehicle Rental,Environmental Services,V093226,0724,3510,Transport,Vehicle Maintenance,26/06/2019,158.75
Brookhire Vehicle Rental,Electoral and Democratic Services,V093297,8108,3150,Transport,Vehicle Hire,18/06/2019,130.67
Brookhire Vehicle Rental,Electoral and Democratic Services,V093467,8108,3150,Transport,Vehicle Hire,18/06/2019,130.67
Brookhire Vehicle Rental,Environmental Services,V093539,0764,3100,Transport,"Vehicle General Costs (Cleaning,CMS FTA)",20/06/2019,229.30
Brookhire Vehicle Rental,Environmental Services,V093540,0727,3510,Transport,Vehicle Maintenance,20/06/2019,126.09
Brookhire Vehicle Rental,Environmental Services,V093541,0722,3510,Transport,Vehicle Maintenance,20/06/2019,184.20
C D Plumbing Services,Property Services,V093506,2950,1000,Premises,Repairs & Maintenance,20/06/2019,280.00
C G Murray & Son Ltd,Environmental Services,V093525,0900,0700,Employees,Staff Welfare,20/06/2019,80.00
C G Murray & Son Ltd,Environmental Services,V093525,0900,0700,Employees,Staff Welfare,20/06/2019,360.00
C J Bayliss (Hereford) Ltd,Property Services,V093105,1142,7010,Capital,Works,06/06/2019,46315.59
C J Bayliss (Hereford) Ltd,Property Services,V093106,1199,7010,Capital,Works,06/06/2019,18323.49
C P Davidson and Sons Ltd,Environmental Services,V093271,0778,3150,Transport,Vehicle Hire,24/06/2019,2520.00
C P Davidson and Sons Ltd,Environmental Services,V093323,0777,3510,Transport,Vehicle Maintenance,20/06/2019,530.42
Capita Business Services Limited,Finance and Other Resources,V093018,2607,5543,Supplies and Services,Credit Card Commission,06/06/2019,357.11
CCS Media Ltd,Property Services,V093398,4302,4230,Supplies and Services,Telephones,28/06/2019,423.20
CCS Media Ltd,Property Services,V093433,4302,4230,Supplies and Services,Telephones,28/06/2019,24.87
Certas Energy Ltd t/a Pace Fuelcare,Environmental Services,V093134,9918,8902,Balance Sheet,Payments,06/06/2019,311.55
Certas Energy Ltd t/a Pace Fuelcare,Environmental Services,V093158,9918,8902,Balance Sheet,Payments,06/06/2019,3114.30
Certas Energy Ltd t/a Pace Fuelcare,Environmental Services,V093493,9918,8902,Balance Sheet,Payments,18/06/2019,3073.32
Certas Energy Ltd t/a Pace Fuelcare,Environmental Services,V093519,9918,8902,Balance Sheet,Payments,20/06/2019,3072.30
Certas Energy Ltd t/a Pace Fuelcare,Environmental Services,V093537,9918,8902,Balance Sheet,Payments,20/06/2019,2981.40
Certas Energy Ltd t/a Pace Fuelcare,Environmental Services,V093570,9918,8902,Balance Sheet,Payments,24/06/2019,2981.40
Christ Church Hall,Electoral and Democratic Services,V093301,8101,2818,Supplies and Services,Accommodation Hire,18/06/2019,195.00
Christ Church Hall,Electoral and Democratic Services,V093301,8108,2818,Supplies and Services,Accommodation Hire,18/06/2019,195.00
Civica UK Ltd,Finance and Other Resources,V092983,8013,2800,Third Party payments,Contractors,18/06/2019,1699.77
Civica UK Ltd,Finance and Other Resources,V093390,8861,2135,Supplies and Services,Computers - Software,14/06/2019,13656.33
Close Brothers Invoice Finance,Environmental Services,V093085,0925,3100,Transport,"Vehicle General Costs (Cleaning,CMS FTA)",06/06/2019,253.43
CMS Supatrak Ltd,Environmental Services,V093159,0700,3100,Transport,"Vehicle General Costs (Cleaning,CMS FTA)",28/06/2019,9.99
CMS Supatrak Ltd,Environmental Services,V093159,0701,3100,Transport,"Vehicle General Costs (Cleaning,CMS FTA)",28/06/2019,9.99
CMS Supatrak Ltd,Environmental Services,V093159,0704,3100,Transport,"Vehicle General Costs (Cleaning,CMS FTA)",28/06/2019,9.99
CMS Supatrak Ltd,Environmental Services,V093159,0722,3100,Transport,"Vehicle General Costs (Cleaning,CMS FTA)",28/06/2019,9.99
CMS Supatrak Ltd,Environmental Services,V093159,0723,3100,Transport,"Vehicle General Costs (Cleaning,CMS FTA)",28/06/2019,9.99
CMS Supatrak Ltd,Environmental Services,V093159,0724,3100,Transport,"Vehicle General Costs (Cleaning,CMS FTA)",28/06/2019,9.99
CMS Supatrak Ltd,Environmental Services,V093159,0725,3100,Transport,"Vehicle General Costs (Cleaning,CMS FTA)",28/06/2019,9.99
CMS Supatrak Ltd,Environmental Services,V093159,0726,3100,Transport,"Vehicle General Costs (Cleaning,CMS FTA)",28/06/2019,9.99
CMS Supatrak Ltd,Environmental Services,V093159,0727,3100,Transport,"Vehicle General Costs (Cleaning,CMS FTA)",28/06/2019,9.99
CMS Supatrak Ltd,Environmental Services,V093159,0728,3100,Transport,"Vehicle General Costs (Cleaning,CMS FTA)",28/06/2019,9.99
CMS Supatrak Ltd,Environmental Services,V093159,0762,3100,Transport,"Vehicle General Costs (Cleaning,CMS FTA)",28/06/2019,9.99
CMS Supatrak Ltd,Environmental Services,V093159,0764,3100,Transport,"Vehicle General Costs (Cleaning,CMS FTA)",28/06/2019,9.99
CMS Supatrak Ltd,Environmental Services,V093159,0767,3100,Transport,"Vehicle General Costs (Cleaning,CMS FTA)",28/06/2019,9.99
CMS Supatrak Ltd,Environmental Services,V093159,0777,3100,Transport,"Vehicle General Costs (Cleaning,CMS FTA)",28/06/2019,9.99
CMS Supatrak Ltd,Environmental Services,V093159,0778,3100,Transport,"Vehicle General Costs (Cleaning,CMS FTA)",28/06/2019,9.99
CMS Supatrak Ltd,Environmental Services,V093159,0794,3100,Transport,"Vehicle General Costs (Cleaning,CMS FTA)",28/06/2019,9.99
CMS Supatrak Ltd,Environmental Services,V093159,0795,3100,Transport,"Vehicle General Costs (Cleaning,CMS FTA)",28/06/2019,9.99
CMS Supatrak Ltd,Environmental Services,V093159,0796,3100,Transport,"Vehicle General Costs (Cleaning,CMS FTA)",28/06/2019,9.99
CMS Supatrak Ltd,Environmental Services,V093159,0799,3100,Transport,"Vehicle General Costs (Cleaning,CMS FTA)",28/06/2019,9.99
CMS Supatrak Ltd,Environmental Services,V093159,0815,3100,Transport,"Vehicle General Costs (Cleaning,CMS FTA)",28/06/2019,9.99
CMS Supatrak Ltd,Environmental Services,V093159,0816,3100,Transport,"Vehicle General Costs (Cleaning,CMS FTA)",28/06/2019,9.99
CMS Supatrak Ltd,Environmental Services,V093159,0817,3100,Transport,"Vehicle General Costs (Cleaning,CMS FTA)",28/06/2019,9.99
CMS Supatrak Ltd,Environmental Services,V093159,0818,3100,Transport,"Vehicle General Costs (Cleaning,CMS FTA)",28/06/2019,9.99
CMS Supatrak Ltd,Environmental Services,V093159,0821,3100,Transport,"Vehicle General Costs (Cleaning,CMS FTA)",28/06/2019,9.99
CMS Supatrak Ltd,Environmental Services,V093159,0822,3100,Transport,"Vehicle General Costs (Cleaning,CMS FTA)",28/06/2019,9.99
CMS Supatrak Ltd,Environmental Services,V093159,0823,3100,Transport,"Vehicle General Costs (Cleaning,CMS FTA)",28/06/2019,9.99
CMS Supatrak Ltd,Environmental Services,V093159,0824,3100,Transport,"Vehicle General Costs (Cleaning,CMS FTA)",28/06/2019,9.99
CMS Supatrak Ltd,Environmental Services,V093159,0826,3100,Transport,"Vehicle General Costs (Cleaning,CMS FTA)",28/06/2019,9.99
CMS Supatrak Ltd,Environmental Services,V093159,0830,3100,Transport,"Vehicle General Costs (Cleaning,CMS FTA)",28/06/2019,9.99
CMS Supatrak Ltd,Environmental Services,V093159,0831,3100,Transport,"Vehicle General Costs (Cleaning,CMS FTA)",28/06/2019,9.99
CMS Supatrak Ltd,Environmental Services,V093159,0832,3100,Transport,"Vehicle General Costs (Cleaning,CMS FTA)",28/06/2019,9.99
Corona Energy,Property Services,V093107,0900,1303,Premises,Gas,06/06/2019,88.64
Corona Energy,Property Services,V093108,6550,1303,Premises,Gas,06/06/2019,84.59
Corona Energy,Property Services,V093109,2975,1303,Premises,Gas,06/06/2019,21.60
Corona Energy,Property Services,V093110,2972,1303,Premises,Gas,06/06/2019,590.80
Corona Energy,Property Services,V093111,2987,1303,Premises,Gas,06/06/2019,38.29
Corona Energy,Property Services,V093484,0900,1303,Premises,Gas,26/06/2019,74.55
Corona Energy,Property Services,V093485,6550,1303,Premises,Gas,26/06/2019,57.00
Corona Energy,Property Services,V093486,2975,1303,Premises,Gas,26/06/2019,22.32
Corona Energy,Property Services,V093487,2972,1303,Premises,Gas,26/06/2019,408.46
Corona Energy,Property Services,V093488,2987,1303,Premises,Gas,26/06/2019,26.75
Crimestop Security & Fire Ltd,Property Services,V093101,2982,1120,Premises,Maintenance Agreements,14/06/2019,300.00
David Whyman Map Sales,Tourism,V093193,6550,2600,Supplies and Services,Items for Re-sale,06/06/2019,17.97
David Whyman Map Sales,Tourism,V093193,6550,2600,Supplies and Services,Items for Re-sale,06/06/2019,129.67
David Whyman Map Sales,Tourism,V093193,6550,2600,Supplies and Services,Items for Re-sale,06/06/2019,38.97
David Whyman Map Sales,Tourism,V093193,6550,2600,Supplies and Services,Items for Re-sale,06/06/2019,107.88
David Whyman Map Sales,Tourism,V093194,6550,2600,Supplies and Services,Items for Re-sale,06/06/2019,25.93
David Whyman Map Sales,Tourism,V093195,6590,2600,Supplies and Services,Items for Re-sale,06/06/2019,107.88
David Whyman Map Sales,Tourism,V093195,6590,2600,Supplies and Services,Items for Re-sale,06/06/2019,29.94
David Whyman Map Sales,Tourism,V093195,6590,2600,Supplies and Services,Items for Re-sale,06/06/2019,31.08
David Whyman Map Sales,Tourism,V093195,6590,2600,Supplies and Services,Items for Re-sale,06/06/2019,7.77
David Whyman Map Sales,Tourism,V093195,6590,2600,Supplies and Services,Items for Re-sale,06/06/2019,35.70
David Whyman Map Sales,Tourism,V093195,6590,2600,Supplies and Services,Items for Re-sale,06/06/2019,51.87
David Whyman Map Sales,Tourism,V093195,6590,2600,Supplies and Services,Items for Re-sale,06/06/2019,51.87
Dennis Eagle,Finance and Other Resources,V092722,1401,7000,Capital,Fees,28/06/2019,185686.00
Dennis Eagle,Finance and Other Resources,V092723,1401,7000,Capital,Fees,14/06/2019,185686.00
Dennis Eagle,Finance and Other Resources,V093104,1401,7000,Capital,Fees,12/06/2019,185686.00
Dennis Eagle,Finance and Other Resources,V093434,0834,3331,Transport,Vehicle Excise Duty,14/06/2019,1272.60
Dennis Eagle,Finance and Other Resources,V093434,0835,3331,Transport,Vehicle Excise Duty,14/06/2019,1272.60
District Councils Network,SMT,V092830,2819,5300,Supplies and Services,Subscriptions,06/06/2019,579.00
Docu-Finish Solutions Ltd,Property Services,V093357,8633,1000,Premises,Repairs & Maintenance,12/06/2019,455.00
Ecclesiastical Steeplejacks Limited,Property Services,V093611,2950,1000,Premises,Repairs & Maintenance,26/06/2019,120.00
Ecclesiastical Steeplejacks Limited,Property Services,V093611,2972,1000,Premises,Repairs & Maintenance,26/06/2019,240.00
Ecclesiastical Steeplejacks Limited,Property Services,V093611,6140,1000,Premises,Repairs & Maintenance,26/06/2019,120.00
Ecclesiastical Steeplejacks Limited,Property Services,V093611,6200,1000,Premises,Repairs & Maintenance,26/06/2019,240.00
Electoral Reform Services,Electoral and Democratic Services,V093368,8103,4000,Supplies and Services,Printing & Photocopying,14/06/2019,608.75
Electoral Reform Services,Electoral and Democratic Services,V093369,8101,4000,Supplies and Services,Printing & Photocopying,14/06/2019,2671.50
Electoral Reform Services,Electoral and Democratic Services,V093371,8120,4000,Supplies and Services,Printing & Photocopying,14/06/2019,18.75
Electoral Reform Services,Electoral and Democratic Services,V093371,8120,4220,Supplies and Services,Postage,14/06/2019,23.75
Electoral Reform Services,Electoral and Democratic Services,V093372,8101,4000,Supplies and Services,Printing & Photocopying,14/06/2019,21.89
Electoral Reform Services,Electoral and Democratic Services,V093372,8101,4220,Supplies and Services,Postage,14/06/2019,550.55
Electoral Reform Services,Electoral and Democratic Services,V093411,8101,4000,Supplies and Services,Printing & Photocopying,20/06/2019,5012.51
Electoral Reform Services,Electoral and Democratic Services,V093412,8101,4000,Supplies and Services,Printing & Photocopying,18/06/2019,4074.20
Electoral Reform Services,Electoral and Democratic Services,V093412,8101,4220,Supplies and Services,Postage,18/06/2019,3949.48
Electoral Reform Services,Electoral and Democratic Services,V093413,8103,4000,Supplies and Services,Printing & Photocopying,18/06/2019,3696.35
Electoral Reform Services,Electoral and Democratic Services,V093413,8103,4220,Supplies and Services,Postage,18/06/2019,897.60
Electoral Reform Services,Electoral and Democratic Services,V093457,8108,4000,Supplies and Services,Printing & Photocopying,18/06/2019,76.57
Electoral Reform Services,Electoral and Democratic Services,V093457,8108,4220,Supplies and Services,Postage,18/06/2019,557.05
Ernst & Young LLP,Finance and Other Resources,V092557,8863,5534,Third Party payments,External Audit,14/06/2019,8030.00
Flagpole Express Ltd,Property Services,V093042,2950,1000,Premises,Repairs & Maintenance,20/06/2019,134.75
Flagpole Express Ltd,Property Services,V093042,2972,1000,Premises,Repairs & Maintenance,20/06/2019,134.75
Fortis Living,Housing,V093621,3300,2800,Third Party payments,Contractors,28/06/2019,355.96
Geesink Norba Ltd,Environmental Services,V092823,0822,3510,Transport,Vehicle Maintenance,04/06/2019,236.34
Geesink Norba Ltd,Environmental Services,V093209,0821,3510,Transport,Vehicle Maintenance,26/06/2019,1179.88
Geesink Norba Ltd,Environmental Services,V093210,0817,3510,Transport,Vehicle Maintenance,26/06/2019,237.93
Geesink Norba Ltd,Environmental Services,V093213,0816,3510,Transport,Vehicle Maintenance,18/06/2019,237.94
Geesink Norba Ltd,Environmental Services,V093228,0818,3510,Transport,Vehicle Maintenance,26/06/2019,50.99
Geesink Norba Ltd,Environmental Services,V093279,0824,3510,Transport,Vehicle Maintenance,10/06/2019,412.96
Geesink Norba Ltd,Environmental Services,V093284,0824,3510,Transport,Vehicle Maintenance,10/06/2019,354.91
Global Payments,Finance and Other Resources,V093363,2607,5543,Supplies and Services,Credit Card Commission,18/06/2019,7.00
Global Payments,Finance and Other Resources,V093363,2607,5543,Supplies and Services,Credit Card Commission,18/06/2019,1245.86
Global Payments,Finance and Other Resources,V093364,2607,5543,Supplies and Services,Credit Card Commission,18/06/2019,7.00
Global Payments,Finance and Other Resources,V093364,2607,5543,Supplies and Services,Credit Card Commission,18/06/2019,915.34
Grimley Peace Hall Foundation,Electoral and Democratic Services,V093360,8108,2818,Supplies and Services,Accommodation Hire,14/06/2019,250.00
Hako Service Solutions,Environmental Services,V093206,0718,3510,Transport,Vehicle Maintenance,26/06/2019,15.00
Hako Service Solutions,Environmental Services,V093206,0718,3510,Transport,Vehicle Maintenance,26/06/2019,1916.40
Hako Service Solutions,Environmental Services,V093492,0767,3510,Transport,Vehicle Maintenance,28/06/2019,285.00
Harrison Clark LLP,Legal Services,V093222,9003,8902,Balance Sheet,Payments,10/06/2019,540.00
Herefordshire and Worcestershire Chamber of Commer,Economic Development,V093370,6400,5400,Third Party payments,Grants,14/06/2019,4000.00
Herefordshire and Worcestershire Chamber of Commer,Economic Development,V093499,6710,4346,Third Party payments,Partnership Support,20/06/2019,5000.00
Holy Trinity Parish Hall,Electoral and Democratic Services,V093429,8101,2818,Supplies and Services,Accommodation Hire,18/06/2019,224.00
Holy Trinity Parish Hall,Electoral and Democratic Services,V093429,8108,2818,Supplies and Services,Accommodation Hire,18/06/2019,224.00
Imperial Polythene Products Ltd,Environmental Services,V093470,4196,2301,Supplies and Services,Refuse Sacks,18/06/2019,1642.55
Imperial Polythene Products Ltd,Environmental Services,V093471,4196,2302,Supplies and Services,Recycling Sacks,18/06/2019,14437.50
Imperial Polythene Products Ltd,Environmental Services,V093494,4196,2301,Supplies and Services,Refuse Sacks,20/06/2019,7745.92
Innovate Malvern CIC,Economic Development,V093259,6723,2800,Third Party payments,Contractors,10/06/2019,45.00
Innovate Malvern CIC,Economic Development,V093260,6723,2800,Third Party payments,Contractors,10/06/2019,1000.00
Insight Direct (UK) Limited,Environmental Services,V092965,0900,2000,Supplies and Services,Furniture & Equipment,18/06/2019,432.99
Insight Direct (UK) Limited,Environmental Services,V092966,0900,2000,Supplies and Services,Furniture & Equipment,18/06/2019,120.96
J M Phillips & Sons,Housing,V093280,1563,7201,Capital,Mandatory Disabled Facilities Grant,18/06/2019,17095.00
Jark (Worcester) Ltd,Environmental Services,V093249,0925,0200,Employees,Agency Staff,10/06/2019,589.39
Jark (Worcester) Ltd,Environmental Services,V093405,0925,0200,Employees,Agency Staff,14/06/2019,519.64
Jark (Worcester) Ltd,Environmental Services,V093556,0925,0200,Employees,Agency Staff,24/06/2019,477.79
Jeremy Benn Asssociates Ltd,Finance and Other Resources,V092902,7006,2800,Third Party payments,Contractors,06/06/2019,7419.00
JLAG,Economic Development,V093565,6710,0600,Employees,Training,24/06/2019,225.00
Landscape Supply Company,Environmental Services,V093184,0925,2700,Supplies and Services,Clothing and Uniforms,28/06/2019,73.90
Landscape Supply Company,Environmental Services,V093184,0960,2700,Supplies and Services,Clothing and Uniforms,28/06/2019,221.70
Leigh & Bransford Memorial Hall,Electoral and Democratic Services,V093186,8101,2818,Supplies and Services,Accommodation Hire,06/06/2019,255.00
Lindridge Parish Hall,Electoral and Democratic Services,V093367,8101,2818,Supplies and Services,Accommodation Hire,14/06/2019,192.00
Lindridge Parish Hall,Electoral and Democratic Services,V093423,8108,2818,Supplies and Services,Accommodation Hire,14/06/2019,192.00
Lloyds TSB Commercial Finance,Housing,V093283,1563,7201,Capital,Mandatory Disabled Facilities Grant,10/06/2019,9495.00
Lloyds TSB Commercial Finance,Housing,V093560,1563,7201,Capital,Mandatory Disabled Facilities Grant,24/06/2019,4866.46
Lloyds TSB Commercial Finance,Housing,V093561,1563,7201,Capital,Mandatory Disabled Facilities Grant,24/06/2019,4451.15
Lloyds TSB Commercial Finance,Housing,V093562,1563,7201,Capital,Mandatory Disabled Facilities Grant,24/06/2019,3490.00
Lloyds TSB Commercial Finance,Housing,V093563,1563,7201,Capital,Mandatory Disabled Facilities Grant,24/06/2019,3450.00
M E Bennion,Electoral and Democratic Services,V093607,8120,2800,Third Party payments,Contractors,28/06/2019,4945.00
Mallard Consultancy,Community Services,V092913,4226,2800,Third Party payments,Contractors,12/06/2019,1560.00
Malvern Construction Ltd,Property Services,V093632,2982,1000,Premises,Repairs & Maintenance,28/06/2019,1005.41
Malvern Dial-A-Ride,Community Services,V093157,4070,5529,Third Party payments,Concessionary Fares,04/06/2019,483.00
Malvern Hills Trust,Finance and Other Resources,P093572,0007,4899,Transfer Payments,Precept Payments,26/06/2019,235000.00
Malvern Priory P C C,Property Services,P093156,6550,1500,Premises,Rents,04/06/2019,416.00
Malvern Priory P C C,Economic Development,V093619,6724,5400,Third Party payments,Grants,28/06/2019,4750.00
Malvern Theatres Trust Ltd,Finance and Other Resources,V093387,6200,1000,Premises,Repairs & Maintenance,14/06/2019,1000.00
Malvern Town Council,Finance and Other Resources,P093573,0007,4899,Transfer Payments,Precept Payments,26/06/2019,331500.00
Malvern Walking Festival,Tourism,V093313,6550,9252,Income,Commission,18/06/2019,-88.20
Malvern Walking Festival,Tourism,V093313,9567,8902,Balance Sheet,Payments,18/06/2019,882.00
Marshall Structures Ltd,Economic Development,V093517,6724,5400,Third Party payments,Grants,20/06/2019,1060.54
Metric Group Ltd,Community Services,V092787,4140,2800,Third Party payments,Contractors,26/06/2019,518.87
Metric Group Ltd,Community Services,V093199,4157,2800,Third Party payments,Contractors,28/06/2019,12363.00
Metric Group Ltd,Community Services,V093199,4191,2800,Third Party payments,Contractors,28/06/2019,8242.00
Metric Group Ltd,Community Services,V093298,4100,2800,Third Party payments,Contractors,26/06/2019,225.00
Midland Commercials Ltd,Environmental Services,V093582,0823,3510,Transport,Vehicle Maintenance,26/06/2019,245.87
Midland Commercials Worcester Ltd,Environmental Services,V092807,0701,3510,Transport,Vehicle Maintenance,04/06/2019,45.00
Midland Commercials Worcester Ltd,Environmental Services,V092818,0822,3510,Transport,Vehicle Maintenance,04/06/2019,1124.90
Midland Commercials Worcester Ltd,Environmental Services,V092835,0822,3510,Transport,Vehicle Maintenance,04/06/2019,146.76
Midland Commercials Worcester Ltd,Environmental Services,V092873,0795,3510,Transport,Vehicle Maintenance,06/06/2019,71.58
Midland Commercials Worcester Ltd,Environmental Services,V092878,0818,3510,Transport,Vehicle Maintenance,06/06/2019,1451.76
Midland Commercials Worcester Ltd,Environmental Services,V092987,0823,3510,Transport,Vehicle Maintenance,18/06/2019,45.00
Midland Commercials Worcester Ltd,Environmental Services,V092988,0824,3510,Transport,Vehicle Maintenance,14/06/2019,515.85
Midland Commercials Worcester Ltd,Environmental Services,V092989,0817,3510,Transport,Vehicle Maintenance,18/06/2019,222.26
Midland Commercials Worcester Ltd,Environmental Services,V092990,0822,3510,Transport,Vehicle Maintenance,18/06/2019,172.24
Midland Commercials Worcester Ltd,Environmental Services,V092991,0831,3510,Transport,Vehicle Maintenance,18/06/2019,55.00
Midland Commercials Worcester Ltd,Environmental Services,V092992,0823,3510,Transport,Vehicle Maintenance,18/06/2019,116.12
Midland Commercials Worcester Ltd,Environmental Services,V093346,0777,3510,Transport,Vehicle Maintenance,20/06/2019,872.99
Midland Commercials Worcester Ltd,Environmental Services,V093512,0824,3510,Transport,Vehicle Maintenance,20/06/2019,45.00
Midland Communications Ltd,Finance and Other Resources,V093520,0900,4230,Supplies and Services,Telephones,25/06/2019,34.50
Midland Communications Ltd,Finance and Other Resources,V093520,4302,4230,Supplies and Services,Telephones,25/06/2019,11.79
Midland Communications Ltd,Finance and Other Resources,V093520,6550,4230,Supplies and Services,Telephones,25/06/2019,656.61
Midland Communications Ltd,Finance and Other Resources,V093520,6590,4230,Supplies and Services,Telephones,25/06/2019,93.98
Midland Communications Ltd,Finance and Other Resources,V093520,8631,4230,Supplies and Services,Telephones,25/06/2019,111.75
Midland Communications Ltd,Finance and Other Resources,V093520,8645,4230,Supplies and Services,Telephones,25/06/2019,67.92
Minuteman Press,Environmental Services,V093402,0925,2000,Supplies and Services,Furniture & Equipment,14/06/2019,414.43
Modern Mindset Ltd,Electoral and Democratic Services,V093272,2342,2135,Supplies and Services,Computers - Software,10/06/2019,500.00
Modern Mindset Ltd,Electoral and Democratic Services,V093300,2342,2135,Supplies and Services,Computers - Software,12/06/2019,7250.00
Motus Commercials Limited,Environmental Services,V092724,0796,3510,Transport,Vehicle Maintenance,20/06/2019,40.00
Motus Commercials Limited,Environmental Services,V092724,0796,3510,Transport,Vehicle Maintenance,20/06/2019,91.00
Motus Commercials Limited,Environmental Services,V092804,0701,3510,Transport,Vehicle Maintenance,04/06/2019,11.18
Motus Commercials Limited,Environmental Services,V092872,0796,3510,Transport,Vehicle Maintenance,12/06/2019,108.00
Motus Commercials Limited,Environmental Services,V092905,0795,3510,Transport,Vehicle Maintenance,12/06/2019,795.67
Motus Commercials Limited,Environmental Services,V092915,0831,3510,Transport,Vehicle Maintenance,14/06/2019,10.70
Motus Commercials Limited,Environmental Services,V092916,0816,3510,Transport,Vehicle Maintenance,14/06/2019,28.70
Motus Commercials Limited,Environmental Services,V092929,0822,3510,Transport,Vehicle Maintenance,14/06/2019,504.77
Motus Commercials Limited,Environmental Services,V092935,0831,3510,Transport,Vehicle Maintenance,14/06/2019,916.15
Motus Commercials Limited,Environmental Services,V093021,0794,3510,Transport,Vehicle Maintenance,20/06/2019,647.39
Motus Commercials Limited,Environmental Services,V093029,0823,3510,Transport,Vehicle Maintenance,20/06/2019,221.84
Motus Commercials Limited,Environmental Services,V093050,0815,3510,Transport,Vehicle Maintenance,24/06/2019,316.68
Motus Commercials Limited,Environmental Services,V093075,0822,3510,Transport,Vehicle Maintenance,24/06/2019,1527.10
Motus Commercials Limited,Environmental Services,V093075,0822,3510,Transport,Vehicle Maintenance,24/06/2019,113.00
Motus Commercials Limited,Environmental Services,V093076,0815,3510,Transport,Vehicle Maintenance,26/06/2019,74.51
Motus Commercials Limited,Environmental Services,V093079,0816,3510,Transport,Vehicle Maintenance,24/06/2019,252.00
Motus Commercials Limited,Environmental Services,V093091,0824,3510,Transport,Vehicle Maintenance,26/06/2019,1446.91
Motus Commercials Limited,Environmental Services,V093113,0796,3510,Transport,Vehicle Maintenance,04/06/2019,634.39
Motus Commercials Limited,Environmental Services,V093522,0796,3510,Transport,Vehicle Maintenance,20/06/2019,-91.00
Motus Commercials Limited,Environmental Services,V093522,0796,3510,Transport,Vehicle Maintenance,20/06/2019,-40.00
Municipal Mutual Insurance Limited,Finance and Other Resources,V092548,2621,4402,Supplies and Services,Uninsured Loss,14/06/2019,644.00
Navigate NDC Limited,Finance and Other Resources,V093359,7850,0500,Employees,Recruitment Expenses,18/06/2019,7510.00
Newsquest (Media Group) Limited,Development Control,V092847,7300,4210,Third Party payments,Advertising,06/06/2019,144.00
Newsquest (Media Group) Limited,Development Control,V093007,7300,4330,Third Party payments,Publicity & Promotions,06/06/2019,144.00
Newsquest (Media Group) Limited,Development Control,V093024,7300,4210,Third Party payments,Advertising,14/06/2019,144.00
Newsquest (Media Group) Limited,Development Control,V093025,7300,4210,Third Party payments,Advertising,14/06/2019,96.00
Newsquest (Media Group) Limited,Development Control,V093026,7300,4210,Third Party payments,Advertising,14/06/2019,144.00
Newsquest (Media Group) Limited,Development Control,V093161,7300,4210,Third Party payments,Advertising,28/06/2019,96.00
Newsquest (Media Group) Limited,Development Control,V093251,7300,4210,Third Party payments,Advertising,28/06/2019,120.00
Nibra Signs Ltd,Corporate Data Team,V093185,4520,1000,Premises,Repairs & Maintenance,28/06/2019,107.05
Nibra Signs Ltd,Corporate Data Team,V093185,4520,1000,Premises,Repairs & Maintenance,28/06/2019,204.10
Nibra Signs Ltd,Corporate Data Team,V093185,4520,1000,Premises,Repairs & Maintenance,28/06/2019,214.10
Nibra Signs Ltd,Corporate Data Team,V093185,4520,1000,Premises,Repairs & Maintenance,28/06/2019,302.15
No5 Chambers,Electoral and Democratic Services,V093302,2300,0600,Employees,Training,12/06/2019,500.00
No5 Chambers,Development Control,V093590,7300,2800,Third Party payments,Contractors,26/06/2019,3500.00
Nomix Enviro Ltd,Environmental Services,V093168,0960,2000,Supplies and Services,Furniture & Equipment,04/06/2019,357.85
Nomix Enviro Ltd,Environmental Services,V093245,0701,3510,Transport,Vehicle Maintenance,26/06/2019,240.00
Nomix Enviro Ltd,Environmental Services,V093245,0704,3510,Transport,Vehicle Maintenance,26/06/2019,237.75
npower Limited,Property Services,V093188,0900,1301,Premises,Electricity,06/06/2019,446.56
npower Limited,Property Services,V093188,2972,1301,Premises,Electricity,06/06/2019,1676.00
npower Limited,Property Services,V093188,2973,1301,Premises,Electricity,06/06/2019,287.97
npower Limited,Property Services,V093327,2950,1301,Premises,Electricity,20/06/2019,9.78
npower Limited,Property Services,V093327,2984,1301,Premises,Electricity,20/06/2019,55.40
npower Limited,Property Services,V093327,4198,1301,Premises,Electricity,20/06/2019,29.92
npower Limited,Property Services,V093327,4630,1301,Premises,Electricity,20/06/2019,24.68
npower Limited,Property Services,V093327,4633,1301,Premises,Electricity,20/06/2019,35.05
npower Limited,Property Services,V093327,4635,1301,Premises,Electricity,20/06/2019,62.29
npower Limited,Property Services,V093327,4642,1301,Premises,Electricity,20/06/2019,31.68
npower Limited,Property Services,V093327,4650,1301,Premises,Electricity,20/06/2019,22.14
npower Limited,Property Services,V093327,4651,1301,Premises,Electricity,20/06/2019,60.27
npower Limited,Property Services,V093327,6550,1301,Premises,Electricity,20/06/2019,23.61
npower Limited,Property Services,V093327,6590,1301,Premises,Electricity,20/06/2019,107.51
npower Limited,Property Services,V093500,4157,1301,Premises,Electricity,20/06/2019,349.21
npower Limited,Property Services,V093530,0900,1301,Premises,Electricity,26/06/2019,392.53
npower Limited,Property Services,V093530,2972,1301,Premises,Electricity,26/06/2019,1673.62
npower Limited,Property Services,V093530,2973,1301,Premises,Electricity,26/06/2019,270.06
Ove Arup & Partners Limited,Finance and Other Resources,V093180,7006,2800,Third Party payments,Contractors,28/06/2019,2435.00
Pertemps Ltd,Environmental Services,V093140,0925,0200,Employees,Agency Staff,04/06/2019,439.09
Pertemps Ltd,Environmental Services,V093144,0925,0200,Employees,Agency Staff,04/06/2019,198.59
Pertemps Ltd,Environmental Services,V093145,0925,0200,Employees,Agency Staff,04/06/2019,259.61
Pertemps Ltd,Environmental Services,V093146,0925,0200,Employees,Agency Staff,04/06/2019,562.66
Pertemps Ltd,Environmental Services,V093147,0925,0200,Employees,Agency Staff,04/06/2019,64.10
Pertemps Ltd,Environmental Services,V093148,0960,0200,Employees,Agency Staff,04/06/2019,378.19
Pertemps Ltd,Environmental Services,V093149,0925,0200,Employees,Agency Staff,04/06/2019,455.11
Pertemps Ltd,Environmental Services,V093150,0925,0200,Employees,Agency Staff,04/06/2019,67.31
Pertemps Ltd,Environmental Services,V093151,0925,0200,Employees,Agency Staff,04/06/2019,509.60
Pertemps Ltd,Environmental Services,V093281,0925,0200,Employees,Agency Staff,10/06/2019,201.92
Pertemps Ltd,Environmental Services,V093290,0925,0200,Employees,Agency Staff,10/06/2019,687.70
Pertemps Ltd,Environmental Services,V093291,0925,0200,Employees,Agency Staff,10/06/2019,599.43
Pertemps Ltd,Environmental Services,V093292,0925,0200,Employees,Agency Staff,12/06/2019,519.21
Pertemps Ltd,Environmental Services,V093293,0925,0200,Employees,Agency Staff,12/06/2019,365.37
Pertemps Ltd,Environmental Services,V093294,0925,0200,Employees,Agency Staff,12/06/2019,532.03
Pertemps Ltd,Environmental Services,V093295,0925,0200,Employees,Agency Staff,12/06/2019,307.68
Pertemps Ltd,Environmental Services,V093406,0925,0200,Employees,Agency Staff,18/06/2019,496.46
Pertemps Ltd,Environmental Services,V093468,0925,0200,Employees,Agency Staff,18/06/2019,345.69
Pertemps Ltd,Environmental Services,V093472,0925,0200,Employees,Agency Staff,18/06/2019,371.78
Pertemps Ltd,Environmental Services,V093473,0925,0200,Employees,Agency Staff,18/06/2019,461.52
Pertemps Ltd,Environmental Services,V093474,0923,0200,Employees,Agency Staff,18/06/2019,182.69
Pertemps Ltd,Environmental Services,V093475,0925,0200,Employees,Agency Staff,18/06/2019,179.48
Pertemps Ltd,Environmental Services,V093476,0925,0200,Employees,Agency Staff,18/06/2019,451.91
Pertemps Ltd,Environmental Services,V093477,0923,0200,Employees,Agency Staff,18/06/2019,201.92
Pertemps Ltd,Environmental Services,V093557,4317,0200,Employees,Agency Staff,24/06/2019,456.01
Pertemps Ltd,Environmental Services,V093569,0925,0200,Employees,Agency Staff,24/06/2019,452.34
Pertemps Ltd,Environmental Services,V093569,0960,0200,Employees,Agency Staff,24/06/2019,99.29
Pertemps Ltd,Environmental Services,V093598,0920,0200,Employees,Agency Staff,26/06/2019,576.90
Pertemps Ltd,Environmental Services,V093599,0925,0200,Employees,Agency Staff,26/06/2019,60.90
Pertemps Ltd,Environmental Services,V093600,0925,0200,Employees,Agency Staff,26/06/2019,51.28
Pertemps Ltd,Environmental Services,V093601,0925,0200,Employees,Agency Staff,26/06/2019,128.20
Pertemps Ltd,Environmental Services,V093602,0920,0200,Employees,Agency Staff,26/06/2019,163.46
Pertemps Ltd,Environmental Services,V093603,0925,0200,Employees,Agency Staff,26/06/2019,330.11
Pertemps Ltd,Environmental Services,V093603,4317,0200,Employees,Agency Staff,26/06/2019,86.54
Pertemps Ltd,Environmental Services,V093604,0925,0200,Employees,Agency Staff,26/06/2019,89.74
Pertemps Ltd,Environmental Services,V093605,0925,0200,Employees,Agency Staff,26/06/2019,487.16
Pertemps Ltd,Environmental Services,V093624,0925,0200,Employees,Agency Staff,28/06/2019,430.27
Pertemps Ltd,Environmental Services,V093625,0925,0200,Employees,Agency Staff,28/06/2019,301.27
Pertemps Ltd,Environmental Services,V093626,0925,0200,Employees,Agency Staff,28/06/2019,243.58
Pertemps Ltd,Environmental Services,V093627,0960,0200,Employees,Agency Staff,28/06/2019,169.87
Pertemps Ltd,Environmental Services,V093628,0925,0200,Employees,Agency Staff,28/06/2019,560.93
Pertemps Ltd,Environmental Services,V093629,0925,0200,Employees,Agency Staff,28/06/2019,381.40
Pertemps Ltd,Environmental Services,V093630,0925,0200,Employees,Agency Staff,28/06/2019,522.21
Pertemps Ltd,Environmental Services,V093631,0925,0200,Employees,Agency Staff,28/06/2019,352.55
Pertemps Ltd,Environmental Services,V093631,4317,0200,Employees,Agency Staff,28/06/2019,96.15
Philip Laney and Jolly Ltd,Environmental Services,V093179,0925,9250,Income,Refunds,06/06/2019,364.60
PHS Group Ltd,Property Services,V093122,2973,1311,Premises,Contract Cleaning & Supplies,26/06/2019,16.56
PHS Group Ltd,Property Services,V093123,0900,1311,Premises,Contract Cleaning & Supplies,26/06/2019,8.28
PHS Group Ltd,Property Services,V093124,2972,1311,Premises,Contract Cleaning & Supplies,26/06/2019,8.28
PHS Group Ltd,Property Services,V093124,2972,1311,Premises,Contract Cleaning & Supplies,26/06/2019,269.94
PHS Group Ltd,Property Services,V093125,2985,1311,Premises,Contract Cleaning & Supplies,26/06/2019,8.28
PHS Group Ltd,Property Services,V093126,4630,1311,Premises,Contract Cleaning & Supplies,26/06/2019,26.43
PHS Group Ltd,Property Services,V093127,4660,1311,Premises,Contract Cleaning & Supplies,26/06/2019,8.81
PHS Group Ltd,Property Services,V093128,4651,1311,Premises,Contract Cleaning & Supplies,26/06/2019,35.24
PHS Group Ltd,Property Services,V093129,4635,1311,Premises,Contract Cleaning & Supplies,26/06/2019,44.05
PHS Group Ltd,Property Services,V093130,4633,1311,Premises,Contract Cleaning & Supplies,26/06/2019,17.62
PHS Group Ltd,Property Services,V093131,4661,1311,Premises,Contract Cleaning & Supplies,26/06/2019,26.43
PHS Group Ltd,Property Services,V093132,4642,1311,Premises,Contract Cleaning & Supplies,26/06/2019,35.24
PHS Group Ltd,Property Services,V093133,4650,1311,Premises,Contract Cleaning & Supplies,26/06/2019,17.62
Pirtek (Kidderminster),Environmental Services,V092906,0815,3510,Transport,Vehicle Maintenance,04/06/2019,238.80
Pirtek Worcester,Environmental Services,V093208,0818,3510,Transport,Vehicle Maintenance,06/06/2019,81.03
Pirtek Worcester,Environmental Services,V093231,0821,3510,Transport,Vehicle Maintenance,06/06/2019,59.70
Pirtek Worcester,Environmental Services,V093232,0778,3510,Transport,Vehicle Maintenance,06/06/2019,112.06
Postage By Phone - Pitney Bowes,Finance and Other Resources,V093366,8633,4220,Supplies and Services,Postage,12/06/2019,1001.74
Pressure Washer Sales and Service,Environmental Services,V093498,0784,3510,Transport,Vehicle Maintenance,24/06/2019,224.40
Printed Banners and Signs Ltd,Economic Development,V093118,6732,4000,Supplies and Services,Printing & Photocopying,06/06/2019,89.60
Printed Banners and Signs Ltd,Economic Development,V093119,6550,1000,Premises,Repairs & Maintenance,06/06/2019,180.00
Printed Banners and Signs Ltd,Economic Development,V093204,6723,4000,Supplies and Services,Printing & Photocopying,06/06/2019,118.08
Prism Ltd,Property Services,V092938,8851,2000,Supplies and Services,Furniture & Equipment,12/06/2019,338.00
PW Commercial Company Ltd T/A Printwaste,Property Services,V093534,8633,5506,Supplies and Services,Paper Recycling,28/06/2019,35.00
PW Commercial Company Ltd T/A Printwaste,Property Services,V093535,8633,5506,Supplies and Services,Paper Recycling,28/06/2019,377.70
R Glover Ascroft Ltd,Environmental Services,V092851,0925,2700,Supplies and Services,Clothing and Uniforms,06/06/2019,328.80
Richmond Guest House Ltd,Housing,V093252,3300,2800,Third Party payments,Contractors,10/06/2019,336.00
Richmond Guest House Ltd,Housing,V093252,3300,2800,Third Party payments,Contractors,10/06/2019,67.20
Ricoh UK Ltd,Finance and Other Resources,V093596,0900,6501,Supplies and Services,Operational Leases,26/06/2019,146.16
Ricoh UK Ltd,Finance and Other Resources,V093596,6550,6501,Supplies and Services,Operational Leases,26/06/2019,146.16
Ricoh UK Ltd,Finance and Other Resources,V093596,6590,6501,Supplies and Services,Operational Leases,26/06/2019,146.16
Ricoh UK Ltd,Finance and Other Resources,V093596,8633,4000,Supplies and Services,Printing & Photocopying,26/06/2019,188.94
Ricoh UK Ltd,Finance and Other Resources,V093596,8633,4000,Supplies and Services,Printing & Photocopying,26/06/2019,246.52
Ricoh UK Ltd,Finance and Other Resources,V093596,8633,4000,Supplies and Services,Printing & Photocopying,26/06/2019,12.27
Ricoh UK Ltd,Finance and Other Resources,V093596,8633,4000,Supplies and Services,Printing & Photocopying,26/06/2019,453.65
Ricoh UK Ltd,Finance and Other Resources,V093596,8633,4000,Supplies and Services,Printing & Photocopying,26/06/2019,2.14
Ricoh UK Ltd,Finance and Other Resources,V093596,8633,4000,Supplies and Services,Printing & Photocopying,26/06/2019,77.85
Ricoh UK Ltd,Finance and Other Resources,V093596,8633,4000,Supplies and Services,Printing & Photocopying,26/06/2019,1.45
Ricoh UK Ltd,Finance and Other Resources,V093596,8633,4000,Supplies and Services,Printing & Photocopying,26/06/2019,13.07
Ricoh UK Ltd,Finance and Other Resources,V093596,8633,6501,Supplies and Services,Operational Leases,26/06/2019,584.46
Ron Smith & Co Ltd,Environmental Services,V093588,0960,3510,Transport,Vehicle Maintenance,26/06/2019,1057.46
Royal Mail,Electoral and Democratic Services,V092876,8120,4220,Supplies and Services,Postage,14/06/2019,2500.00
Royal Mail,Electoral and Democratic Services,V093189,8120,4220,Supplies and Services,Postage,06/06/2019,1569.23
Royal Mail,Electoral and Democratic Services,V093240,8120,4220,Supplies and Services,Postage,06/06/2019,1960.96
Royal Mail,Electoral and Democratic Services,V093241,8120,4220,Supplies and Services,Postage,06/06/2019,1200.98
Royal Mail,Electoral and Democratic Services,V093248,8120,4220,Supplies and Services,Postage,06/06/2019,1001.21
Royal Mail,Electoral and Democratic Services,V093589,8120,4220,Supplies and Services,Postage,28/06/2019,1192.47
Rushwick Village Hall,Electoral and Democratic Services,V093265,8101,2818,Supplies and Services,Accommodation Hire,10/06/2019,176.00
Rushwick Village Hall,Electoral and Democratic Services,V093265,8108,2818,Supplies and Services,Accommodation Hire,10/06/2019,176.00
Scarab Sweepers Limited,Environmental Services,V092936,0701,3510,Transport,Vehicle Maintenance,12/06/2019,1082.90
Severn Spots Limited,Economic Development,V093335,6724,5400,Third Party payments,Grants,12/06/2019,299.10
Severn Valley Windows & Doors Ltd,Property Services,V093356,6200,1000,Premises,Repairs & Maintenance,20/06/2019,1008.00
Shaw & Sons Ltd,Electoral and Democratic Services,V092976,8108,4100,Supplies and Services,Stationery,12/06/2019,1774.36
Signs Central,Environmental Services,V093080,0925,2700,Supplies and Services,Clothing and Uniforms,06/06/2019,273.20
Signs Central,Environmental Services,V093117,0836,3510,Transport,Vehicle Maintenance,06/06/2019,120.00
Signs Central,Environmental Services,V093117,0837,3510,Transport,Vehicle Maintenance,06/06/2019,120.00
Signs Central,Environmental Services,V093117,0838,3510,Transport,Vehicle Maintenance,06/06/2019,120.00
Signs Central,Environmental Services,V093528,0817,2000,Supplies and Services,Furniture & Equipment,26/06/2019,137.90
Signs Central,Environmental Services,V093529,0925,2700,Supplies and Services,Clothing and Uniforms,26/06/2019,263.25
Simon Tullett Machinery Company Ltd,Environmental Services,V093182,0718,3510,Transport,Vehicle Maintenance,28/06/2019,471.65
Smith of Derby Ltd,Property Services,V093505,2950,1120,Premises,Maintenance Agreements,20/06/2019,529.00
Snape Contracting Services Ltd,Building Control,V093594,7500,2800,Third Party payments,Contractors,26/06/2019,340.00
Spartan Direct Ltd,Environmental Services,V092939,0900,2000,Supplies and Services,Furniture & Equipment,14/06/2019,2000.00
St John Ambulance,Economic Development,V093052,6723,2800,Third Party payments,Contractors,20/06/2019,328.00
St Marys Church,Electoral and Democratic Services,V093196,8101,2818,Supplies and Services,Accommodation Hire,06/06/2019,330.00
St Marys Church,Electoral and Democratic Services,V093319,8108,2818,Supplies and Services,Accommodation Hire,12/06/2019,350.00
Stanford with Orleton Village Hall,Electoral and Democratic Services,V093266,8108,2818,Supplies and Services,Accommodation Hire,10/06/2019,250.00
Stoke Bliss and Kyre Village Hall,Electoral and Democratic Services,V093167,8108,2818,Supplies and Services,Accommodation Hire,04/06/2019,320.00
Straight Manufacturing Ltd,Environmental Services,V092821,0932,2000,Supplies and Services,Furniture & Equipment,06/06/2019,2992.40
Straight Manufacturing Ltd,Environmental Services,V092904,0932,2000,Supplies and Services,Furniture & Equipment,14/06/2019,2778.60
Tenbury Transport Trust,Community Services,V093547,4070,5529,Third Party payments,Concessionary Fares,24/06/2019,359.00
Thamesdown Recycling,Environmental Services,V093032,4314,2800,Third Party payments,Contractors,18/06/2019,650.40
The Bank House Hotel & Country Club,Electoral and Democratic Services,V093548,8101,2818,Supplies and Services,Accommodation Hire,24/06/2019,3600.00
The Bluebell Inn,Electoral and Democratic Services,V093138,8108,2818,Supplies and Services,Accommodation Hire,04/06/2019,480.00
The Community Housing Group Limited,Finance and Other Resources,V092795,4311,2800,Third Party payments,Contractors,04/06/2019,202.73
The Community Housing Group Limited,Finance and Other Resources,V092795,4320,5500,Supplies and Services,Miscellaneous Expenses,04/06/2019,159.10
The Copyright Licensing Agency,Communications and Policy,V093482,8864,5501,Supplies and Services,Licences,18/06/2019,611.82
The IASME Consortium Ltd,Economic Development,V093244,6733,5400,Third Party payments,Grants,06/06/2019,1000.00
The Vanity Case Company,Economic Development,V093069,6724,5400,Third Party payments,Grants,20/06/2019,500.00
Three Counties Showground,Tourism,V093592,6550,9252,Income,Commission,26/06/2019,-105.90
Three Counties Showground,Tourism,V093592,9553,8902,Balance Sheet,Payments,26/06/2019,1059.00
Truck Tyre Solutions Ltd,Environmental Services,V092948,0830,3320,Transport,Tyres,14/06/2019,154.70
Truck Tyre Solutions Ltd,Environmental Services,V092949,0823,3320,Transport,Tyres,14/06/2019,65.70
Truck Tyre Solutions Ltd,Environmental Services,V092950,0824,3320,Transport,Tyres,14/06/2019,32.85
Truck Tyre Solutions Ltd,Environmental Services,V092971,0925,3320,Transport,Tyres,18/06/2019,517.70
Truck Tyre Solutions Ltd,Environmental Services,V092972,0795,3320,Transport,Tyres,18/06/2019,581.70
Truck Tyre Solutions Ltd,Environmental Services,V092973,0795,3320,Transport,Tyres,18/06/2019,122.60
Truck Tyre Solutions Ltd,Environmental Services,V092974,0925,3320,Transport,Tyres,18/06/2019,76.80
Truck Tyre Solutions Ltd,Environmental Services,V093038,0724,3320,Transport,Tyres,14/06/2019,232.05
Truck Tyre Solutions Ltd,Environmental Services,V093053,0821,3320,Transport,Tyres,24/06/2019,244.85
Truck Tyre Solutions Ltd,Environmental Services,V093054,0833,3320,Transport,Tyres,24/06/2019,996.00
Truck Tyre Solutions Ltd,Environmental Services,V093055,0834,3320,Transport,Tyres,24/06/2019,996.00
Truck Tyre Solutions Ltd,Environmental Services,V093063,0822,3320,Transport,Tyres,24/06/2019,1516.10
Truck Tyre Solutions Ltd,Environmental Services,V093089,0835,3320,Transport,Tyres,24/06/2019,996.00
Truck Tyre Solutions Ltd,Environmental Services,V093152,0831,3320,Transport,Tyres,26/06/2019,115.70
Truck Tyre Solutions Ltd,Environmental Services,V093153,0837,3320,Transport,Tyres,26/06/2019,996.00
Truck Tyre Solutions Ltd,Environmental Services,V093154,0824,3320,Transport,Tyres,26/06/2019,336.85
University of Worcester,Community Services,V093311,4426,2800,Third Party payments,Contractors,20/06/2019,500.00
University of Worcester,Community Services,V093311,4426,2800,Third Party payments,Contractors,20/06/2019,500.00
University of Worcester,Finance and Other Resources,V093324,4426,2800,Third Party payments,Contractors,20/06/2019,-500.00
Vision Techniques (UK) Ltf,Environmental Services,V093043,0724,3510,Transport,Vehicle Maintenance,20/06/2019,545.00
Vision Techniques (UK) Ltf,Environmental Services,V093044,0723,3510,Transport,Vehicle Maintenance,20/06/2019,545.00
Vision Techniques (UK) Ltf,Environmental Services,V093062,0825,3510,Transport,Vehicle Maintenance,20/06/2019,300.00
Vision Techniques (UK) Ltf,Environmental Services,V093139,0764,3510,Transport,Vehicle Maintenance,26/06/2019,545.00
Volkswagen Financial Services (UK) Ltd,Finance and Other Resources,V091271,8861,3600,Transport,Car Leases,18/06/2019,-94.79
Volkswagen Financial Services (UK) Ltd,Finance and Other Resources,V091271,8861,3600,Transport,Car Leases,18/06/2019,-131.00
Volkswagen Financial Services (UK) Ltd,Finance and Other Resources,V091703,8120,3600,Transport,Car Leases,18/06/2019,-827.39
Volkswagen Financial Services (UK) Ltd,Finance and Other Resources,V091703,8120,3600,Transport,Car Leases,18/06/2019,-769.79
Volkswagen Financial Services (UK) Ltd,Finance and Other Resources,V091704,8120,3600,Transport,Car Leases,18/06/2019,183.04
Volkswagen Financial Services (UK) Ltd,Finance and Other Resources,V091705,8120,3600,Transport,Car Leases,18/06/2019,72.72
Volkswagen Financial Services (UK) Ltd,Finance and Other Resources,V092230,6098,3600,Transport,Car Leases,18/06/2019,235.37
Volkswagen Financial Services (UK) Ltd,Finance and Other Resources,V092230,6098,3600,Transport,Car Leases,18/06/2019,254.86
Volkswagen Financial Services (UK) Ltd,Finance and Other Resources,V092725,6098,3600,Transport,Car Leases,18/06/2019,225.50
Volkswagen Financial Services (UK) Ltd,Finance and Other Resources,V092725,6098,3600,Transport,Car Leases,18/06/2019,278.05
Volkswagen Financial Services (UK) Ltd,Finance and Other Resources,V093393,7300,3600,Transport,Car Leases,18/06/2019,145.30
Volkswagen Financial Services (UK) Ltd,Finance and Other Resources,V093393,7300,3600,Transport,Car Leases,18/06/2019,156.97
Volkswagen Financial Services (UK) Ltd,Finance and Other Resources,V093464,8861,3600,Transport,Car Leases,18/06/2019,1275.41
Volkswagen Financial Services (UK) Ltd,Finance and Other Resources,V093464,8861,3600,Transport,Car Leases,18/06/2019,1322.84
Water Plus,Property Services,V093374,4633,1511,Premises,Water services,18/06/2019,101.87
Water Plus,Property Services,V093445,0900,1511,Premises,Water services,18/06/2019,399.61
Water Plus,Property Services,V093478,4153,1511,Premises,Water services,26/06/2019,73.72
Water Plus,Property Services,V093483,4161,1511,Premises,Water services,26/06/2019,506.34
Webaspx Limited,Environmental Services,V093610,0900,2125,Supplies and Services,ICT- Software Licences,26/06/2019,5393.00
Weightmans LLP,Finance and Other Resources,V092747,9003,8902,Balance Sheet,Payments,14/06/2019,291.57
White Consultants: Environment Ltd,Finance and Other Resources,V093585,7006,2800,Third Party payments,Contractors,26/06/2019,1030.00
White Consultants: Environment Ltd,Finance and Other Resources,V093586,7006,2800,Third Party payments,Contractors,26/06/2019,1581.00
White Consultants: Environment Ltd,Finance and Other Resources,V093586,7006,2800,Third Party payments,Contractors,26/06/2019,2800.00
Whittaker Office Solutions,Property Services,V093163,8633,4100,Supplies and Services,Stationery,06/06/2019,406.25
Whittaker Office Solutions,Property Services,V093163,8633,4100,Supplies and Services,Stationery,06/06/2019,69.95
Whittaker Office Solutions,Property Services,V093247,8633,4100,Supplies and Services,Stationery,18/06/2019,385.31
Whittaker Office Solutions,Property Services,V093247,8633,5510,Supplies and Services,Refreshments,18/06/2019,43.60
Wichenford Memorial Hall,Electoral and Democratic Services,V093191,8108,2818,Supplies and Services,Accommodation Hire,14/06/2019,300.00
Worcester City Council,Finance and Other Resources,V093634,3340,5507,Third Party payments,OLA`s,28/06/2019,6300.00
Worcestershire County Council,Finance and Other Resources,V093072,8870,5507,Third Party payments,OLA`s,04/06/2019,214.41
Worcestershire County Council,Finance and Other Resources,V093287,6098,5300,Supplies and Services,Subscriptions,14/06/2019,610.00
Worcestershire County Council,Finance and Other Resources,V093612,7200,5400,Third Party payments,Grants,26/06/2019,18242.00
Workforce Staffing Ltd,Environmental Services,V092800,0900,0200,Employees,Agency Staff,04/06/2019,587.93
Workforce Staffing Ltd,Environmental Services,V093047,0900,0200,Employees,Agency Staff,18/06/2019,605.69
Workforce Staffing Ltd,Environmental Services,V093047,0925,0200,Employees,Agency Staff,18/06/2019,409.50
Workforce Staffing Ltd,Environmental Services,V093084,0900,0200,Employees,Agency Staff,26/06/2019,597.51
Wychavon District Council,Finance and Other Resources,V093022,0900,5507,Third Party payments,OLA`s,18/06/2019,2475.73
Wychavon District Council,Community Services,V093095,4100,5300,Supplies and Services,Subscriptions,06/06/2019,1000.00
Wychavon District Council,Finance and Other Resources,V093353,8013,5500,Supplies and Services,Miscellaneous Expenses,12/06/2019,333.32
Wychavon District Council,Finance and Other Resources,V093502,3800,5507,Third Party payments,OLA`s,20/06/2019,24079.16
Wychavon District Council,Finance and Other Resources,V093502,8013,5507,Third Party payments,OLA`s,20/06/2019,24079.17
Wychavon District Council,Property Services,V093503,1142,7000,Capital,Fees,20/06/2019,66.69
Wychavon District Council,Finance and Other Resources,V093554,3340,5507,Third Party payments,OLA`s,26/06/2019,1855.00
Wychavon District Council,Finance and Other Resources,V093555,3340,5507,Third Party payments,OLA`s,26/06/2019,1140.00
Wyche Institute,Electoral and Democratic Services,V093430,8101,2818,Supplies and Services,Accommodation Hire,18/06/2019,175.00
Wyche Institute,Electoral and Democratic Services,V093430,8108,2818,Supplies and Services,Accommodation Hire,18/06/2019,175.00
YMCA Worcestershire,Electoral and Democratic Services,V093183,8101,2818,Supplies and Services,Accommodation Hire,06/06/2019,150.00
YMCA Worcestershire,Electoral and Democratic Services,V093216,8101,2818,Supplies and Services,Accommodation Hire,06/06/2019,165.00
